[Event "7th Summer Cup 2024"]
[Site "Rhodes"]
[Date "2024.06.23"]
[Round "2.1"]
[White "Nasuta, Grzegorz"]
[Black "Gelle, Istvan"]
[Result "1-0"]
[ECO "B12"]
[WhiteElo "2541"]
[BlackElo "2163"]
[Annotator "TA"]
[PlyCount "49"]
[EventDate "2024.06.22"]
[EventType "swiss"]
[EventCountry "GRE"]
[SourceTitle "playchess.com"]
[Source "ChessBase"]
[SourceQuality "1"]
[TimeControl "15/5400+30:1800+30"]

{[%evp 12,49,31,16,29,19,25,24,50,43,62,37,35,33,33,35,52,15,136,133,145,120,139,79,99,95,179,211,209,193,305,290,288,274,354,333,1791,1683,29995,29996]} 1. e4 {[%emt 0:01:09][%cal Be2e4,Be4e5][%mdl 32]} c6 {[%emt 0:00:11]} 2. d4 {[%emt 0:00:06]} d5 {[%emt 0:00:07]} 3. e5 {[%emt 0:00:14]} Bf5 {[%emt 0:00:10]} 4. Nf3 {[%emt 0:00:11]} e6 {[%emt 0:00:08]} 5. Be2 {[%emt 0:00:09]} Nd7 {[%emt 0:00:11]} 6. O-O {[%emt 0:00:20]} Ne7 {[%emt 0:00:07][%cal Bg8e7,Be7f5,Bf5g7][%mdl 32]} 7. Nbd2 {[%emt 0:01:34]} h6 {[%emt 0:01:07]} 8. Nb3 {[%emt 0:02:04]} a6 {[%emt 0:03:05]} 9. Bd2 {[%emt 0:06:12]} Bh7 {[%emt 0:04:55] White has an edge.} 10. a4 {[%emt 0:12:26][%cal Ba2a4,Ba4a5][%mdl 32]} Nf5 {[%emt 0:08:08]} 11. a5 {[%emt 0:14:17]} Be7 {[%emt 0:07:56]} 12. c4 {[%emt 0:05:41]} dxc4 {[%emt 0:08:03]} 13. Bxc4 {[%emt 0:00:31]} O-O {[%emt 0:01:00]} 14. Qe2 {[%emt 0:05:05]} g5 {[%emt 0:11:25]} (14... c5 $11 {keeps the balance.}) 15. g4 $16 {[%emt 0:18:14]} Ng7 {[%emt 0:02:12] [#]} 16. h4 $1 $36 {[%emt 0:30:05][%mdl 2560] White is on the roll. White is more active.} b5 {[%emt 0:53:48]} 17. Bd3 {[%emt 0:19:22]} ({White should play} 17. axb6 {Threatens to win with b7.} Nxb6 18. Bd3 (18. Rxa6 Nxc4 19. Rxa8 Qxa8 $11) (18. Bxa6 Qd5 $14)) 17... Bxd3 {[%emt 0:05:09]} 18. Qxd3 {[%emt 0:00:01]} gxh4 {[%emt 0:04:17]} (18... c5 $16 {is a better defense.}) 19. Bxh6 $18 {[%emt 0:01:20][%cal Bd2h6,Bh6g5,Bg5f6][%mdl 32]} c5 {[%emt 0:04:29] ...c4 would now be deadly.} 20. dxc5 {[%emt 0:01:09]} Rc8 {[%emt 0:05:24] Black is weak on the dark squares} (20... Nxc5 $142 21. Nxc5 Bxc5) 21. Rfd1 {[%emt 0:02:42]} Nxc5 {[%emt 0:00:44]} 22. Qe3 {[%emt 0:00:21]} Qe8 {[%emt 0:01:34]} 23. Bg5 {[%emt 0:06:42] Hoping for Bf6.} Nxb3 $2 {[%emt 0:00:50] [#]} (23... Nd7 24. Bxe7 (24. Nxh4 Rc4 $14) (24. Bxh4 Bxh4 25. Nxh4 f6 $16) 24... Qxe7) 24. Bf6 $1 {[%emt 0:00:11]} Rc5 {[%emt 0:06:47] [#]} (24... Bxf6 25. exf6) 25. Qh6 $1 {[%emt 0:00:28] Weighted Error Value: White=0.11 (very precise) /Black=0.71.  Mistake:       	White=1     	Black=4      Inaccurate:     	White=1     	Black=2      OK:         	White=7     	Black=4      Best:        	---       	Black=1      Strong:       	White=1     	---        Brilliant:      	White=1     	---} 1-0

[Event "7th Summer Cup 2024"]
[Site "Rhodes"]
[Date "2024.06.23"]
[Round "2.2"]
[White "Ballas, Athanasios-panagioti"]
[Black "Budisavljevic, Luka"]
[Result "1/2-1/2"]
[ECO "B41"]
[WhiteElo "2151"]
[BlackElo "2468"]
[Annotator "TA"]
[PlyCount "44"]
[EventDate "2024.06.22"]
[EventType "swiss"]
[EventCountry "GRE"]
[SourceTitle "playchess.com"]
[Source "ChessBase"]
[SourceQuality "1"]
[TimeControl "15/5400+30:1800+30"]

{[%evp 14,44,43,52,45,52,61,53,52,48,56,38,46,45,45,36,36,36,37,41,44,37,38,41,36,38,88,95,98,102,140,125,116]} 1. e4 {[%emt 0:00:06]} c5 {[%emt 0:00:39]} 2. Nf3 {[%emt 0:00:12]} e6 {[%emt 0:00:10]} 3. d4 {[%emt 0:00:19]} cxd4 {[%emt 0:00:05]} 4. Nxd4 {[%emt 0:00:04]} a6 {[%emt 0:00:34]} 5. c4 {[%emt 0:00:11]} Nf6 {[%emt 0:00:07]} 6. Nc3 {[%emt 0:00:08]} Qc7 {[%emt 0:00:12]} 7. a3 {[%emt 0:00:31]} b6 {[%emt 0:00:05]} 8. Be3 {[%emt 0:00:45]} Bb7 {[%emt 0:00:05]} 9. f3 {[%emt 0:00:07]} Be7 {[%emt 0:00:12]} 10. Be2 {[%emt 0:00:10]} O-O {[%emt 0:00:08] White is slightly better.} 11. O-O {[%emt 0:00:05]} d6 {[%emt 0:00:03]} 12. Qd2 {[%emt 0:00:30]} Nbd7 {[%emt 0:00:06]} 13. Rac1 {[%emt 0:01:07]} Rac8 {[%emt 0:00:05]} 14. b4 {[%emt 0:00:06]} Qb8 {[%emt 0:00:23]} 15. Rc2 {[%emt 0:00:51]} Rfe8 {[%emt 0:01:05]} 16. Rfc1 {[%emt 0:30:23]} Bd8 {[%emt 0:41:41]} 17. Bf1 {[%emt 0:01:16]} Bc7 {[%emt 0:03:50]} 18. Kh1 $36 {[%emt 0:04:07][%mdl 2048] White has good play.} Ne5 {[%emt 0:07:53]} 19. Na4 {[%emt 0:08:30]} d5 {[%emt 0:09:23] [#]} (19... Bd8 $14) 20. exd5 $1 $16 {[%emt 0:02:12]} exd5 {[%emt 0:01:29] Threatens to win with ...Nxc4.} 21. c5 {[%emt 0:08:58]} bxc5 {[%emt 0:26:45]} 22. Nxc5 {[%emt 0:06:20]} Nc4 {[%emt 0:14:20] Weighted Error Value: White=0.03 (flawless) /Black=0.08 (flawless) .  Mistake:       	---       	Black=1      Inaccurate:     	---       	Black=1      OK:         	White=3     	Black=6      Best:        	---       	Black=2      Strong:       	White=1     	---} 1/2-1/2

[Event "7th Summer Cup 2024"]
[Site "Rhodes"]
[Date "2024.06.23"]
[Round "2.3"]
[White "Sibashvili, Giorgi"]
[Black "Seres, Bela"]
[Result "1-0"]
[ECO "E07"]
[WhiteElo "2423"]
[BlackElo "2126"]
[Annotator "RC"]
[PlyCount "85"]
[EventDate "2024.06.22"]
[EventType "swiss"]
[EventCountry "GRE"]
[SourceTitle "playchess.com"]
[Source "ChessBase"]
[SourceQuality "1"]
[TimeControl "15/5400+30:1800+30"]

1. c4 {[%emt 0:00:39]} e6 {[%emt 0:01:38]} 2. g3 {[%emt 0:00:15]} d5 {[%emt 0:00:13]} 3. Bg2 {[%emt 0:00:11]} Nf6 {[%emt 0:00:22]} 4. Nf3 {[%emt 0:00:14]} Be7 {[%emt 0:00:26]} 5. O-O {[%emt 0:00:09]} O-O {[%emt 0:00:13]} 6. b3 {[%emt 0:00:12]} Nbd7 {[%emt 0:01:01]} 7. Nc3 {[%emt 0:04:24]} c6 {[%emt 0:04:30]} 8. d4 {[%emt 0:04:43]} b6 {[%emt 0:04:14]} 9. Nd2 {[%emt 0:04:40]} Bb7 {[%emt 0:02:25]} 10. e4 {[%emt 0:02:19]} Nxe4 {[%emt 0:04:38]} 11. Ndxe4 {[%emt 0:01:26]} dxe4 {[%emt 0:00:06]} 12. Nxe4 {[%emt 0:00:19]} Nf6 {[%emt 0:05:12]} 13. Be3 {[%emt 0:20:01]} Qd7 {[%emt 0:13:52]} 14. Qc2 {[%emt 0:03:28]} Nxe4 {[%emt 0:14:30]} 15. Bxe4 {[%emt 0:01:18]} f5 {[%emt 0:02:07]} 16. Bg2 {[%emt 0:31:44]} c5 {[%emt 0:33:37]} 17. Bxb7 {[%emt 0:04:17]} Qxb7 {[%emt 0:01:13]} 18. dxc5 {[%emt 0:00:30]} Bxc5 {[%emt 0:02:40]} 19. Bxc5 {[%emt 0:01:00]} bxc5 {[%emt 0:00:22]} 20. Rfe1 {[%emt 0:00:17]} Rf6 {[%emt 0:04:49]} 21. Rad1 {[%emt 0:01:32]} h5 {[%emt 0:06:02]} 22. h4 {[%emt 0:06:48]} a5 {[%emt 0:08:59]} 23. Re5 {[%emt 0:12:25]} Qf7 {[%emt 0:03:41]} 24. f4 {[%emt 0:03:30]} Qe7 {[%emt 0:06:22]} 25. Qe2 {[%emt 0:03:40]} a4 {[%emt 0:04:00]} 26. Qxh5 {[%emt 0:06:35]} axb3 {[%emt 0:00:06]} 27. axb3 {[%emt 0:00:11]} Qb7 {[%emt 0:01:56]} 28. Re3 {[%emt 0:01:09]} Ra2 {[%emt 0:02:28]} 29. Qf3 {[%emt 0:01:13]} Qa6 {[%emt 0:01:02]} 30. Red3 {[%emt 0:03:34]} Ra1 {[%emt 0:00:36]} 31. Rxa1 {[%emt 0:03:44]} Qxa1+ {[%emt 0:00:15]} 32. Kg2 {[%emt 0:00:12]} Rf8 {[%emt 0:01:02]} 33. Qe3 {[%emt 0:01:12]} Qf6 {[%emt 0:01:13]} 34. Qxc5 {[%emt 0:01:42]} Ra8 {[%emt 0:00:22]} 35. Rd2 {[%emt 0:01:54]} Qc3 {[%emt 0:00:12]} 36. Qd6 {[%emt 0:00:21]} Qe3 {[%emt 0:01:06]} 37. Qd3 {[%emt 0:01:12]} Qc5 {[%emt 0:00:15]} 38. Qe2 {[%emt 0:00:36]} Qb6 {[%emt 0:00:50]} 39. Rd3 {[%emt 0:05:07]} Ra1 {[%emt 0:00:43]} 40. Rd1 {[%emt 0:00:00]} Ra3 {[%emt 0:00:00]} 41. b4 {[%emt 0:00:00]} Re3 {[%emt 0:00:00]} 42. Rd8+ {[%emt 0:00:00]} Kf7 {[%emt 0:00:59]} 43. Qh5+ {[%emt 0:00:00]} 1-0

[Event "7th Summer Cup 2024"]
[Site "Rhodes"]
[Date "2024.06.23"]
[Round "2.4"]
[White "Hofstadler, Mario"]
[Black "Stefanova, Antoaneta"]
[Result "0-1"]
[ECO "D73"]
[WhiteElo "2103"]
[BlackElo "2417"]
[Annotator "RC"]
[PlyCount "52"]
[EventDate "2024.06.22"]
[EventType "swiss"]
[EventCountry "GRE"]
[SourceTitle "playchess.com"]
[Source "ChessBase"]
[SourceQuality "1"]
[TimeControl "15/5400+30:1800+30"]

1. d4 {[%emt 0:00:06]} Nf6 {[%emt 0:01:03]} 2. c4 {[%emt 0:01:04]} g6 {[%emt 0:00:04]} 3. Nf3 {[%emt 0:01:10]} Bg7 {[%emt 0:00:24]} 4. g3 {[%emt 0:00:28]} c6 {[%emt 0:01:39]} 5. Bg2 {[%emt 0:00:38]} d5 {[%emt 0:00:41]} 6. Qb3 {[%emt 0:06:53]} a5 {[%emt 0:01:50]} 7. cxd5 {[%emt 0:18:37]} a4 {[%emt 0:02:20]} 8. Qd1 {[%emt 0:01:33]} cxd5 {[%emt 0:04:36]} 9. Nc3 {[%emt 0:03:08]} Qa5 {[%emt 0:02:33]} 10. Bd2 {[%emt 0:00:44]} Qa6 {[%emt 0:00:37]} 11. O-O {[%emt 0:05:50]} Nc6 {[%emt 0:05:31]} 12. Rc1 {[%emt 0:11:36]} O-O {[%emt 0:04:15]} 13. Re1 {[%emt 0:06:09]} Rd8 {[%emt 0:05:59]} 14. Bf1 {[%emt 0:01:16]} Bg4 {[%emt 0:07:09]} 15. h3 {[%emt 0:01:07]} Bxf3 {[%emt 0:03:17]} 16. exf3 {[%emt 0:30:09]} Qa7 {[%emt 0:30:46]} 17. Nb5 {[%emt 0:05:32]} Qb6 {[%emt 0:00:35]} 18. Bf4 {[%emt 0:04:32]} Ne8 {[%emt 0:01:41]} 19. Be5 {[%emt 0:09:16]} Bh6 {[%emt 0:02:29]} 20. Rc2 {[%emt 0:04:21]} f6 {[%emt 0:12:20]} 21. Bf4 {[%emt 0:00:22]} Bxf4 {[%emt 0:00:32]} 22. gxf4 {[%emt 0:00:05]} Ng7 {[%emt 0:02:35]} 23. Kg2 {[%emt 0:06:43]} Ra5 {[%emt 0:04:53]} 24. Qe2 {[%emt 0:01:21]} Re8 {[%emt 0:06:03]} 25. a3 {[%emt 0:03:13]} Nh5 {[%emt 0:04:29]} 26. Qe6+ {[%emt 0:00:47]} Kf8 {[%emt 0:00:25]} 0-1

[Event "7th Summer Cup 2024"]
[Site "Rhodes"]
[Date "2024.06.23"]
[Round "2.5"]
[White "Kotronias, Vasilios"]
[Black "Rigopoulos-Tsigkos, Alexandros"]
[Result "1-0"]
[ECO "B42"]
[WhiteElo "2415"]
[BlackElo "2039"]
[Annotator "RC"]
[PlyCount "139"]
[EventDate "2024.06.22"]
[EventType "swiss"]
[EventCountry "GRE"]
[SourceTitle "playchess.com"]
[Source "ChessBase"]
[SourceQuality "1"]
[TimeControl "15/5400+30:1800+30"]

1. e4 {[%emt 0:00:03]} c5 {[%emt 0:05:45]} 2. Nf3 {[%emt 0:00:06]} e6 {[%emt 0:00:37]} 3. d4 {[%emt 0:00:05]} cxd4 {[%emt 0:00:08]} 4. Nxd4 {[%emt 0:00:02]} a6 {[%emt 0:00:09]} 5. Bd3 {[%emt 0:00:06]} Bc5 {[%emt 0:00:15]} 6. Nb3 {[%emt 0:00:06]} Be7 {[%emt 0:00:05]} 7. Qg4 {[%emt 0:00:38]} Bf6 {[%emt 0:02:11]} 8. O-O {[%emt 0:00:08]} d6 {[%emt 0:02:17]} 9. Nc3 {[%emt 0:01:23]} Nc6 {[%emt 0:01:14]} 10. Qh5 {[%emt 0:01:19]} g6 {[%emt 0:05:39]} 11. Qe2 {[%emt 0:00:10]} Bg7 {[%emt 0:04:45]} 12. Be3 {[%emt 0:01:09]} Nge7 {[%emt 0:05:38]} 13. Qd2 {[%emt 0:02:28]} O-O {[%emt 0:05:22]} 14. Bh6 {[%emt 0:00:13]} d5 {[%emt 0:03:49]} 15. Bxg7 {[%emt 0:00:55]} Kxg7 {[%emt 0:01:08]} 16. exd5 {[%emt 0:31:32]} Nxd5 {[%emt 0:32:43]} 17. Be4 {[%emt 0:01:27]} Nxc3 {[%emt 0:12:23]} 18. Qxc3+ {[%emt 0:00:05]} Qf6 {[%emt 0:00:13]} 19. Qxf6+ {[%emt 0:01:32]} Kxf6 {[%emt 0:00:08]} 20. Rfd1 {[%emt 0:00:11]} Ke7 {[%emt 0:03:02]} 21. f4 {[%emt 0:12:20]} Rd8 {[%emt 0:04:27]} 22. Bxc6 {[%emt 0:02:00]} bxc6 {[%emt 0:01:47]} 23. c4 {[%emt 0:06:46]} Rb8 {[%emt 0:07:31]} 24. Rxd8 {[%emt 0:00:51]} Kxd8 {[%emt 0:00:09]} 25. Rd1+ {[%emt 0:00:02]} Kc7 {[%emt 0:00:49]} 26. Rd2 {[%emt 0:00:03]} Rb4 {[%emt 0:01:37]} 27. Rc2 {[%emt 0:00:03]} a5 {[%emt 0:06:37]} 28. Nc5 {[%emt 0:01:48]} Kd6 {[%emt 0:02:36]} 29. Nd3 {[%emt 0:02:27]} Rb7 {[%emt 0:05:10]} 30. Kf2 {[%emt 0:00:31]} f6 {[%emt 0:00:41]} 31. Rd2 {[%emt 0:04:55]} Ke7 {[%emt 0:03:44]} 32. Nc5 {[%emt 0:00:24]} Ra7 {[%emt 0:01:41]} 33. b3 {[%emt 0:05:57]} Ra8 {[%emt 0:04:24]} 34. Ke3 {[%emt 0:02:32]} Ra7 {[%emt 0:01:12]} 35. g4 {[%emt 0:04:42]} Ba6 {[%emt 0:04:34]} 36. a4 {[%emt 0:01:04]} Bc8 {[%emt 0:00:32]} 37. g5 {[%emt 0:00:26]} e5 {[%emt 0:01:07]} 38. gxf6+ {[%emt 0:00:08]} Kxf6 {[%emt 0:00:13]} 39. Ne4+ {[%emt 0:02:34]} Ke7 {[%emt 0:00:35]} 40. fxe5 {[%emt 0:00:00]} Bf5 {[%emt 0:00:00]} 41. Nc5 {[%emt 0:00:00]} h5 {[%emt 0:00:00]} 42. h4 {[%emt 0:00:00]} Ra8 {[%emt 0:00:00]} 43. Rd6 {[%emt 0:00:00]} Rc8 {[%emt 0:00:00]} 44. Rf6 {[%emt 0:00:00]} Bc2 {[%emt 0:00:00]} 45. Re6+ {[%emt 0:00:00]} Kf7 {[%emt 0:00:00]} 46. Rf6+ {[%emt 0:00:00]} Ke7 {[%emt 0:00:00]} 47. Kd2 {[%emt 0:00:00]} Bf5 {[%emt 0:00:00]} 48. Kc3 {[%emt 0:00:00]} Rf8 {[%emt 0:00:00]} 49. Rxc6 {[%emt 0:00:00]} g5 {[%emt 0:00:00]} 50. hxg5 {[%emt 0:00:00]} h4 {[%emt 0:00:00]} 51. Rh6 {[%emt 0:00:00]} h3 {[%emt 0:00:00]} 52. g6 {[%emt 0:05:27]} Rg8 {[%emt 0:02:32]} 53. Rh7+ {[%emt 0:00:24]} Ke8 {[%emt 0:01:37]} 54. Nb7 {[%emt 0:00:07]} Be6 {[%emt 0:01:13]} 55. Rh6 {[%emt 0:02:36]} Kf8 {[%emt 0:01:18]} 56. Nc5 {[%emt 0:03:43]} Kg7 {[%emt 0:01:26]} 57. Rh4 {[%emt 0:00:19]} Bf5 {[%emt 0:01:10]} 58. Ne4 {[%emt 0:10:13]} Bxe4 {[%emt 0:01:28]} 59. Rxe4 {[%emt 0:00:03]} h2 {[%emt 0:00:26]} 60. Re1 {[%emt 0:00:02]} Rh8 {[%emt 0:00:26]} 61. Rh1 {[%emt 0:00:14]} Kxg6 {[%emt 0:00:25]} 62. Kd4 {[%emt 0:00:39]} Kf5 {[%emt 0:00:40]} 63. Kd5 {[%emt 0:00:59]} Rd8+ {[%emt 0:00:41]} 64. Kc5 {[%emt 0:00:20]} Rd2 {[%emt 0:00:50]} 65. Kb5 {[%emt 0:00:41]} Kxe5 {[%emt 0:00:16]} 66. Kxa5 {[%emt 0:00:16]} Kd4 {[%emt 0:00:09]} 67. Kb4 {[%emt 0:00:46]} Kd3 {[%emt 0:01:22]} 68. a5 {[%emt 0:02:00]} Ke3 {[%emt 0:00:26]} 69. a6 {[%emt 0:00:36]} Ra2 {[%emt 0:00:06]} 70. a7 {[%emt 0:00:09]} 1-0

[Event "7th Summer Cup 2024"]
[Site "Rhodes"]
[Date "2024.06.23"]
[Round "2.6"]
[White "Van de Lagemaat, Arend"]
[Black "Papasimakopoulos, Alexandros"]
[Result "0-1"]
[ECO "A47"]
[WhiteElo "2030"]
[BlackElo "2375"]
[Annotator "RC"]
[PlyCount "114"]
[EventDate "2024.06.22"]
[EventType "swiss"]
[EventCountry "GRE"]
[SourceTitle "playchess.com"]
[Source "ChessBase"]
[SourceQuality "1"]
[TimeControl "15/5400+30:1800+30"]

1. d4 {[%emt 0:00:03]} Nf6 {[%emt 0:11:57]} 2. Nf3 {[%emt 0:00:08]} b6 {[%emt 0:00:12]} 3. g3 {[%emt 0:00:07]} Bb7 {[%emt 0:00:06]} 4. Bg2 {[%emt 0:00:06]} c5 {[%emt 0:00:22]} 5. O-O {[%emt 0:02:57]} cxd4 {[%emt 0:00:53]} 6. Nxd4 {[%emt 0:03:44]} Bxg2 {[%emt 0:00:07]} 7. Kxg2 {[%emt 0:00:03]} Qc8 {[%emt 0:02:15]} 8. b3 {[%emt 0:05:24]} h5 {[%emt 0:03:28]} 9. h3 {[%emt 0:08:35]} d5 {[%emt 0:00:13]} 10. Nf3 {[%emt 0:03:10]} Nbd7 {[%emt 0:05:34]} 11. Bb2 {[%emt 0:00:10]} e6 {[%emt 0:00:05]} 12. Nbd2 {[%emt 0:00:13]} b5 {[%emt 0:00:13]} 13. c4 {[%emt 0:05:13]} dxc4 {[%emt 0:01:29]} 14. bxc4 {[%emt 0:02:55]} b4 {[%emt 0:00:06]} 15. Qc2 {[%emt 0:09:49]} Be7 {[%emt 0:00:43]} 16. e4 {[%emt 0:31:43]} Nc5 {[%emt 0:30:07]} 17. e5 {[%emt 0:06:12]} Nfd7 {[%emt 0:00:06]} 18. Rad1 {[%emt 0:06:54]} Qb7 {[%emt 0:04:43]} 19. Kh2 {[%emt 0:03:40]} Rc8 {[%emt 0:04:14]} 20. Rfe1 {[%emt 0:02:14]} O-O {[%emt 0:03:09]} 21. Nd4 {[%emt 0:02:51]} Nb6 {[%emt 0:04:51]} 22. f4 {[%emt 0:04:51]} Nba4 {[%emt 0:07:57]} 23. Ba1 {[%emt 0:01:05]} Rfd8 {[%emt 0:06:54]} 24. f5 {[%emt 0:03:14]} exf5 {[%emt 0:07:36]} 25. Nxf5 {[%emt 0:05:22]} Nc3 {[%emt 0:00:23]} 26. Bxc3 {[%emt 0:00:27]} bxc3 {[%emt 0:00:04]} 27. Nf3 {[%emt 0:04:59]} Ne6 {[%emt 0:08:00]} 28. Nxe7+ {[%emt 0:02:41]} Qxe7 {[%emt 0:00:06]} 29. Qxc3 {[%emt 0:00:11]} Rxd1 {[%emt 0:00:14]} 30. Rxd1 {[%emt 0:00:02]} Qc5 {[%emt 0:00:11]} 31. Rd2 {[%emt 0:01:45]} Qxc4 {[%emt 0:00:11]} 32. Qxc4 {[%emt 0:00:31]} Rxc4 {[%emt 0:00:05]} 33. Kg2 {[%emt 0:00:58]} Ra4 {[%emt 0:00:26]} 34. Kf2 {[%emt 0:02:30]} Kh7 {[%emt 0:01:02]} 35. Nh4 {[%emt 0:01:41]} Ng5 {[%emt 0:01:04]} 36. Kg2 {[%emt 0:00:33]} Ne4 {[%emt 0:01:57]} 37. Rc2 {[%emt 0:02:02]} Ra3 {[%emt 0:00:55]} 38. Nf5 {[%emt 0:04:33]} Nc3 {[%emt 0:03:39]} 39. Kf3 {[%emt 0:01:29]} g5 {[%emt 0:00:58]} 40. h4 {[%emt 0:00:00]} Nxa2+ {[%emt 0:00:00]} 41. Ke4 {[%emt 0:00:00]} Nc3+ {[%emt 0:00:00]} 42. Kd4 {[%emt 0:00:00]} Nb5+ {[%emt 0:00:00]} 43. Kc4 {[%emt 0:00:00]} Rf3 {[%emt 0:00:00]} 44. Kxb5 {[%emt 0:00:00]} Rxf5 {[%emt 0:00:00]} 45. Rc5 {[%emt 0:03:11]} Kg6 {[%emt 0:00:00]} 46. Kc6 {[%emt 0:00:52]} g4 {[%emt 0:00:00]} 47. Kd6 {[%emt 0:01:47]} Rf3 {[%emt 0:01:26]} 48. e6 {[%emt 0:00:42]} fxe6 {[%emt 0:01:20]} 49. Ke7 {[%emt 0:02:23]} Rf5 {[%emt 0:01:27]} 50. Rc6 {[%emt 0:00:13]} Rf7+ {[%emt 0:00:32]} 51. Kd6 {[%emt 0:01:03]} Rf3 {[%emt 0:03:41]} 52. Rc5 {[%emt 0:00:24]} Rxg3 {[%emt 0:00:37]} 53. Re5 {[%emt 0:00:43]} Rh3 {[%emt 0:02:31]} 54. Rg5+ {[%emt 0:00:27]} Kf6 {[%emt 0:00:49]} 55. Rxh5 {[%emt 0:00:04]} Rd3+ {[%emt 0:00:06]} 56. Kc6 {[%emt 0:00:31]} Rd5 {[%emt 0:01:44]} 57. Rh8 {[%emt 0:00:28]} Ke5 {[%emt 0:18:12]} 0-1

[Event "7th Summer Cup 2024"]
[Site "Rhodes"]
[Date "2024.06.23"]
[Round "2.7"]
[White "Ladopoulos, Dimitrios"]
[Black "Grapsa, Georgia"]
[Result "1-0"]
[ECO "A48"]
[WhiteElo "2374"]
[BlackElo "1979"]
[Annotator "RC"]
[PlyCount "33"]
[EventDate "2024.06.22"]
[EventType "swiss"]
[EventCountry "GRE"]
[SourceTitle "playchess.com"]
[Source "ChessBase"]
[SourceQuality "1"]
[TimeControl "15/5400+30:1800+30"]

1. d4 {[%emt 0:04:33]} Nf6 {[%emt 0:00:05]} 2. Nf3 {[%emt 0:00:08]} b6 {[%emt 0:00:44]} 3. Bg5 {[%emt 0:07:58]} Ne4 {[%emt 0:03:32]} 4. Bh4 {[%emt 0:04:02]} g6 {[%emt 0:05:35]} 5. e3 {[%emt 0:01:41]} Bg7 {[%emt 0:00:40]} 6. Bd3 {[%emt 0:00:18]} Bb7 {[%emt 0:02:01]} 7. c4 {[%emt 0:01:35]} O-O {[%emt 0:01:31]} 8. O-O {[%emt 0:09:51]} d6 {[%emt 0:04:18]} 9. Bxe4 {[%emt 0:06:15]} Bxe4 {[%emt 0:00:09]} 10. Nc3 {[%emt 0:00:05]} Bb7 {[%emt 0:10:02]} 11. e4 {[%emt 0:02:39]} Nd7 {[%emt 0:07:54]} 12. Re1 {[%emt 0:04:44]} c5 {[%emt 0:10:51]} 13. Nd5 {[%emt 0:06:49]} Re8 {[%emt 0:07:59]} 14. e5 {[%emt 0:06:23]} dxe5 {[%emt 0:01:33]} 15. dxe5 {[%emt 0:00:08]} Nf8 {[%emt 0:00:20]} 16. Nxe7+ {[%emt 0:30:37]} Kh8 {[%emt 0:31:48]} 17. Nxg6+ {[%emt 0:00:08]} 1-0

[Event "7th Summer Cup 2024"]
[Site "Rhodes"]
[Date "2024.06.23"]
[Round "2.8"]
[White "Witczak, Borys"]
[Black "Mostbauer, Florian"]
[Result "0-1"]
[ECO "D32"]
[WhiteElo "1937"]
[BlackElo "2324"]
[Annotator "RC"]
[PlyCount "48"]
[EventDate "2024.06.22"]
[EventType "swiss"]
[EventCountry "GRE"]
[SourceTitle "playchess.com"]
[Source "ChessBase"]
[SourceQuality "1"]
[TimeControl "15/5400+30:1800+30"]

1. d4 {[%emt 0:00:15]} d5 {[%emt 0:00:34]} 2. c4 {[%emt 0:00:07]} e6 {[%emt 0:00:22]} 3. Nc3 {[%emt 0:00:04]} c5 {[%emt 1:31:04]} 4. Nf3 {[%emt 1:32:04]} Nc6 {[%emt 0:00:00]} 5. cxd5 {[%emt 0:00:00]} exd5 {[%emt 0:00:00]} 6. dxc5 {[%emt 0:01:00]} d4 {[%emt 0:00:00]} 7. Na4 {[%emt 0:00:00]} Bxc5 {[%emt 0:00:00]} 8. Nxc5 {[%emt 0:00:00]} Qa5+ {[%emt 0:00:00]} 9. Bd2 {[%emt 0:00:00]} Qxc5 {[%emt 0:00:00]} 10. Rc1 {[%emt 0:02:00]} Qb6 {[%emt 0:00:00]} 11. e3 {[%emt 0:00:30]} Nf6 {[%emt 0:04:00]} 12. exd4 {[%emt 0:00:30]} Qxb2 {[%emt 0:00:30]} 13. d5 {[%emt 0:00:30]} Nxd5 {[%emt 0:00:00]} 14. Rc2 {[%emt 0:00:30]} Qa3 {[%emt 0:00:00]} 15. Bc4 {[%emt 0:00:00]} Qe7+ {[%emt 0:00:00]} 16. Kf1 {[%emt 0:08:07]} Be6 {[%emt 0:32:00]} 17. Ng5 {[%emt 0:07:27]} Rd8 {[%emt 0:00:00]} 18. Nxe6 {[%emt 0:16:26]} Qxe6 {[%emt 0:00:00]} 19. Qb1 {[%emt 0:00:00]} O-O {[%emt 0:00:00]} 20. Qxb7 {[%emt 0:00:00]} Qe4 {[%emt 0:00:00]} 21. Rc1 {[%emt 0:00:00]} Ne5 {[%emt 0:00:00]} 22. Qb3 {[%emt 0:00:00]} Nb6 {[%emt 0:00:00]} 23. Ba6 {[%emt 0:00:42]} Rxd2 {[%emt 0:00:00]} 24. Qc3 {[%emt 0:00:07]} Qf4 {[%emt 0:00:00]} 0-1